bitfinex-derivatives/quotes_BNBF0:USTF0_20250126
["timestamp","ask_amount","ask_price","bid_price","bid_amount"]
[1737880436228,1.08749117,688.95,687.62,0.29085832]
[1737880440134,1.08749117,688.92,687.62,0.29085832]
[1737880441236,0.29031368,688.91,687.62,0.29085832]
[1737880443140,1.08749117,688.88,687.62,0.29085832]
[1737880446242,0.29033054,688.87,687.62,0.29085832]
[1737880462760,1.08749117,688.79,687.62,0.29085832]
[1737880464460,1.37785543,688.79,687.62,0.29085832]
[1737880464759,0.29036847,688.78,687.62,0.29085832]
[1737880476467,1.08749117,688.7,687.62,0.29085832]
[1737880478668,1.08749117,688.75,687.62,0.29085832]
[1737880482068,1.08749117,688.7,687.62,0.29085832]
[1737880488480,1.08749117,688.67,687.62,0.29085832]
[1737880491882,1.08749117,688.62,687.62,0.29085832]
[1737880494881,1.08749117,688.52,687.62,0.29085832]
[1737880497880,1.08749117,688.47,687.62,0.29085832]
[1737880500890,1.08749117,688.71,687.62,0.29085832]
[1737880504594,1.51742532,688.7,687.62,0.29085832]
[1737880518404,1.08749117,688.52,687.62,0.29085832]
[1737880521104,1.08749117,688.5,687.62,0.29085832]
[1737880524110,1.08749117,688.58,687.62,0.29085832]
[1737880527911,1.51742532,688.7,687.62,0.29085832]
[1737880533315,1.08749117,688.66,687.62,0.29085832]
[1737880536215,1.51742532,688.7,687.62,0.29085832]
[1737880536216,1.08749117,688.64,687.62,0.29085832]
[1737880540424,1.08749117,688.62,687.62,0.29085832]
[1737880543825,1.51742532,688.7,687.62,0.29085832]
[1737880546321,1.08749117,688.6,687.62,0.29085832]
[1737880549423,0.29036847,688.78,687.62,0.29085832]
[1737880549424,1.08749117,688.61,687.62,0.29085832]
[1737880553731,1.08749117,688.49,687.62,0.29085832]
[1737880558040,1.08749117,688.55,687.62,0.29085832]
[1737880567743,1.08749117,688.49,687.62,0.29085832]
[1737880571240,1.08749117,688.39,687.62,0.29085832]
[1737880574448,1.08749117,688.37,687.62,0.29085832]
[1737880576848,1.08749117,688.49,687.62,0.29085832]
[1737880583052,1.08749117,688.45,687.62,0.29085832]
[1737880587059,1.08749117,688.6,687.62,0.29085832]
[1737880593361,1.08749117,688.6,687.2,1.08916561]
[1737880593567,1.08749117,688.6,687.21,0.29103185]
[1737880594071,1.08749117,688.62,687.21,0.29103185]
[1737880597469,0.29036847,688.78,687.21,0.29103185]
[1737880597470,1.08749117,688.65,687.21,0.29103185]
[1737880597663,0.2904275,688.64,687.21,0.29103185]
[1737880607873,0.2904275,688.64,687.22,1.5173757]
[1737880608075,0.2904275,688.64,687.23,0.29102338]
[1737880615484,1.08749117,688.63,687.23,0.29102338]
[1737880616281,1.08749117,688.63,687.24,0.26724743]
[1737880616487,1.08749117,688.63,687.25,0.29101491]
[1737880617781,1.08749117,688.63,687.26,0.26724743]
[1737880617986,1.08749117,688.63,687.26,0.29101068]
[1737880618286,1.08749117,688.63,687.27,0.26724742]
[1737880618986,1.08749117,688.5,687.27,0.26724742]
[1737880619985,1.08749117,688.5,687.28,0.26724489]
[1737880620183,1.08749117,688.5,687.27,0.26724489]
[1737880620382,1.08749117,688.5,687.28,0.26724489]
[1737880620587,1.08749117,688.5,687.27,0.26724489]
[1737880620785,1.08749117,688.5,687.28,0.26724489]
[1737880621088,1.08749117,688.5,687.29,0.26724489]
[1737880621383,1.08749117,688.5,687.3,0.26724499]
[1737880621589,1.08749117,688.5,687.31,0.26724499]
[1737880621786,1.08749117,688.5,687.27,0.26724499]
[1737880621988,1.08749117,688.48,687.28,0.26724499]
[1737880623092,1.08749117,688.48,687.29,0.29099797]
[1737880624385,1.08749117,688.48,687.3,0.26724499]
[1737880624590,1.08749117,688.48,687.31,0.2909895]
[1737880624783,1.08749117,688.48,687.32,0.26724499]
[1737880624986,1.08749117,688.48,687.33,0.29098104]
[1737880626087,1.08749117,688.47,687.33,1.38014665]
[1737880630596,1.08749117,688.63,687.33,0.29098104]
[1737880634099,1.37791867,688.64,687.33,0.29098104]
[1737880637203,0.2904275,688.64,687.33,0.29098104]
[1737880648304,1.08749117,688.63,687.33,0.29098104]
[1737880652210,0.2904275,688.64,687.33,0.29098104]
[1737880659017,1.37791867,688.64,687.33,0.29098104]
[1737880662021,0.2904275,688.64,687.33,0.29098104]
[1737880670728,1.08749117,688.6,687.33,0.29098104]
[1737880674032,1.08749117,688.62,687.33,0.29098104]
[1737880677038,0.2904275,688.64,687.33,0.29098104]
[1737880683533,0.2904275,688.64,687.34,0.26720475]
[1737880683840,0.2904275,688.64,687.35,0.29097257]
[1737880684039,0.2904275,688.64,687.36,0.26720475]
[1737880684236,0.2904275,688.64,687.37,0.2909641]
[1737880686040,0.2904275,688.64,687.38,0.26717332]
[1737880686238,0.2904275,688.64,687.39,0.29095564]
[1737880686441,0.2904275,688.64,687.4,0.26717332]
[1737880686741,0.2904275,688.64,687.41,0.29094717]
[1737880687941,0.2904275,688.64,687.42,0.26715816]
[1737880688435,0.2904275,688.64,687.43,0.29093871]
[1737880694242,0.2904275,688.64,687.44,0.26716437]
[1737880694437,0.2904275,688.64,687.45,0.29093024]
[1737880696246,1.08749117,688.88,687.45,0.29093024]
[1737880699247,1.08749117,688.92,687.45,0.29093024]
[1737880701750,1.08749117,689.03,687.45,0.29093024]
[1737880701751,1.08749117,688.87,687.45,0.29093024]
[1737880704552,1.08749117,688.87,687.46,0.26716299]
[1737880704752,1.08749117,688.87,687.47,0.29092178]
[1737880705053,1.08749117,688.87,687.48,0.26716299]
[1737880705253,1.08749117,688.87,687.49,0.29091332]
[1737880705446,1.08749117,688.87,687.5,0.26716299]
[1737880705651,1.08749117,688.87,687.51,0.55806881]
[1737880705851,1.08749117,688.87,687.52,0.55806458]
[1737880706053,1.08749117,688.87,687.53,0.55806035]
[1737880706252,1.08749117,688.87,687.54,0.55805612]
[1737880706453,1.08749117,688.87,687.55,0.29088793]
[1737880707756,1.08749117,688.72,687.55,0.29088793]
[1737880710258,1.08749117,688.73,687.55,0.29088793]
[1737880713459,1.08749117,688.85,687.55,0.29088793]
[1737880716962,0.29027576,689.0,687.55,0.29088793]
[1737880716963,1.08749117,688.82,687.55,0.29088793]
[1737880719362,0.29027576,689.0,687.55,0.29088793]
[1737880719363,1.08749117,688.8,687.55,0.29088793]
[1737880723660,0.29027576,689.0,687.55,0.29088793]
[1737880723661,1.08749117,688.82,687.55,0.29088793]
[1737880734272,0.29027576,689.0,687.55,0.29088793]
[1737880734273,1.08749117,688.66,687.55,0.29088793]
[1737880736674,1.08749117,688.66,687.56,0.26715506]
[1737880736875,1.08749117,688.66,687.57,0.29087947]
[1737880737271,1.08749117,688.63,687.57,0.29087947]
[1737880740575,1.08749117,688.59,687.58,1.08916561]
[1737880740778,1.08749117,688.59,687.59,0.29087101]
[1737880742280,1.08749117,688.59,687.6,0.26710963]
[1737880742579,1.08749117,688.59,687.61,0.29086255]
[1737880742779,1.08749117,688.59,687.62,0.26710963]
[1737880742980,1.08749117,688.59,687.61,0.29086255]
[1737880743180,1.08749117,688.59,687.62,0.26710618]
[1737880743574,1.08749117,688.59,687.61,0.29086255]
[1737880745077,1.08749117,688.68,687.61,0.29086255]
[1737880745078,1.08749117,688.78,687.61,0.29086255]
[1737880748384,1.08749117,688.96,687.61,0.29086255]
[1737880751681,1.08749117,688.98,687.61,0.29086255]
[1737880754086,1.37776693,689.0,687.61,0.29086255]
[1737880756792,1.08749117,688.94,687.61,0.29086255]
[1737880762600,1.08749117,688.96,687.61,0.29086255]
[1737880764593,0.29029682,688.95,687.61,0.29086255]
[1737880765493,1.37778799,688.95,687.61,0.29086255]
[1737880768796,0.29029682,688.95,687.61,0.29086255]
[1737880776898,1.08749117,688.78,687.61,0.29086255]
[1737880779499,1.08749117,688.92,687.61,0.29086255]
[1737880782106,0.29029682,688.95,687.61,0.29086255]
[1737880803319,0.29029682,688.95,687.62,0.26707019]
[1737880803517,0.29029682,688.95,687.63,0.29085409]
[1737880804020,0.29029682,688.95,687.64,0.26706733]
[1737880804215,0.29029682,688.95,687.65,0.29084563]
[1737880804412,0.29029682,688.95,687.66,0.26705518]
[1737880804614,0.29029682,688.95,687.67,0.29083717]
[1737880804817,0.29029682,688.95,687.68,0.26705518]
[1737880805020,0.29029682,688.95,687.69,0.29082871]
[1737880805420,0.29029682,688.95,687.7,0.26705518]
[1737880805622,0.29029682,688.95,687.71,0.29082025]
[1737880811326,0.29029682,688.95,687.72,0.26705387]
[1737880811526,0.29029682,688.95,687.73,0.2908118]
[1737880816624,0.29029682,688.95,687.74,0.26706162]
[1737880816827,0.29029682,688.95,687.75,0.29080334]
[1737880817031,0.29029682,688.95,687.76,0.26706162]
[1737880817231,1.08749117,689.13,687.77,0.29079488]
[1737880819135,1.08749117,689.0,687.77,0.29079488]
[1737880821935,2.22029448,689.53,687.77,0.29079488]
[1737880821936,1.08749117,689.36,687.77,0.29079488]
[1737880822131,0.29012838,689.35,687.77,0.29079488]
[1737880824833,1.08749117,689.34,687.77,0.29079488]
[1737880825036,0.29013679,689.33,687.77,0.29079488]
[1737880825942,1.51620223,689.32,687.77,0.29079488]
[1737880826141,0.29014521,689.31,687.77,0.29079488]
[1737880827142,0.29014521,689.31,687.78,0.26703111]
[1737880827443,0.29014521,689.31,687.79,0.29078643]
[1737880827641,1.37763638,689.31,687.8,0.26703111]
[1737880827843,1.37763638,689.31,687.81,0.29077797]
[1737880828042,1.37763638,689.31,687.82,0.26703111]
[1737880828241,1.37763638,689.31,687.83,0.29076952]
[1737880828437,1.37763638,689.31,687.84,0.26703111]
[1737880828636,1.37763638,689.31,687.85,0.29076106]
[1737880829043,1.37763638,689.31,687.86,0.26703121]
[1737880829244,1.37763638,689.31,687.87,0.29075261]
[1737880829445,1.37763638,689.31,687.88,0.26703121]
[1737880829745,1.37763638,689.31,687.89,0.29074415]
[1737880831541,1.08749117,689.03,687.89,0.29074415]
[1737880835342,1.08749117,689.06,687.89,0.29074415]
[1737880836544,1.08749117,689.06,687.78,1.08916561]
[1737880838443,1.08749117,689.51,687.57,1.08916561]
[1737880838644,1.08749117,689.51,687.52,1.08916561]
[1737880840645,1.08749117,689.5,687.54,1.08916561]
[1737880842651,1.08749117,689.5,687.55,1.51619122]
[1737880843246,1.08749117,689.5,687.56,0.26699623]
[1737880843443,1.51615269,689.49,687.56,0.26699623]
[1737880844846,1.51615269,689.49,687.55,1.51619122]
[1737880845351,1.51615269,689.49,687.56,0.26700135]
[1737880845550,1.51615269,689.49,687.55,1.51619122]
[1737880846044,1.51615269,689.49,687.56,0.26700802]
[1737880847653,1.51615269,689.49,687.58,1.08916561]
[1737880847846,1.51615269,689.49,687.59,0.26700802]
[1737880849349,1.51615269,689.49,687.6,0.26699898]
[1737880849557,1.51615269,689.49,687.59,0.26699898]
[1737880850055,1.08749117,689.26,687.76,1.08916561]
[1737880850257,1.08749117,689.26,687.77,0.26699898]
[1737880852660,1.08749117,689.2,687.83,1.08916561]
[1737880852860,1.08749117,689.2,687.84,0.26699898]
[1737880858762,2.22029448,690.12,687.84,0.26699898]
[1737880858763,1.08749117,689.19,687.85,0.26700069]
[1737880860166,1.08749117,689.19,687.84,1.08916561]
[1737880860361,1.08749117,689.19,687.85,0.2670054]
[1737880860562,1.08749117,689.19,687.86,0.267005]
[1737880860760,1.08749117,689.19,687.85,0.267005]
[1737880861463,1.08749117,689.13,687.87,1.08916561]
[1737880861663,1.08749117,689.13,687.88,0.267005]
[1737880861863,1.08749117,689.13,687.87,1.08916561]
[1737880862062,1.08749117,689.13,687.88,0.26700522]
[1737880863569,1.08749117,689.13,687.87,1.08916561]
[1737880864765,1.08749117,689.09,687.87,1.08916561]
[1737880868271,1.08749117,689.37,687.69,1.08916561]
[1737880868572,0.29012417,689.36,687.71,0.29082025]
[1737880876474,0.29012417,689.36,687.72,0.26700135]
[1737880876776,0.29012417,689.36,687.74,0.29080757]
[1737880876975,0.29012417,689.36,687.75,0.26700135]
[1737880877271,0.29012417,689.36,687.76,0.29079911]
[1737880877475,0.29012417,689.36,687.77,0.26700135]
[1737880877678,0.29012417,689.36,687.78,0.29079065]
[1737880878579,1.08749117,689.24,687.82,1.08916561]
[1737880878778,1.08749117,689.24,687.83,0.29076952]
[1737880879779,1.08749117,689.24,687.84,0.26699884]
[1737880879979,1.08749117,689.24,687.85,0.29076106]
[1737880880180,1.08749117,689.24,687.86,0.26699884]
[1737880880383,1.08749117,689.24,687.87,0.29075261]
[1737880880679,1.08749117,689.24,687.88,0.26699891]
[1737880880878,1.08749117,689.24,687.89,0.29074415]
[1737880881074,1.08749117,689.24,687.9,0.26699891]
[1737880881278,1.08749117,689.24,687.91,0.2907357]
[1737880885479,1.08749117,689.06,687.95,1.08916561]
[1737880888784,1.08749117,689.07,687.95,1.08916561]
[1737880890785,1.08749117,689.02,687.97,1.08916561]
[1737880893587,1.08749117,689.01,687.98,1.08916561]
[1737880896393,1.08749117,689.11,687.92,1.08916561]
[1737880896585,1.08749117,689.11,687.93,0.29072725]
[1737880901894,1.08749117,689.1,687.93,0.29072725]
[1737880904895,1.08749117,689.1,687.94,0.26700458]
[1737880905297,1.08749117,689.08,687.94,0.26700458]
[1737880905596,1.08749117,689.08,687.95,0.26700434]
[1737880905798,1.08749117,689.08,687.93,0.29072725]
[1737880906594,1.08749117,689.08,687.94,0.26700442]
[1737880907091,1.08749117,689.08,687.93,0.29072725]
[1737880907292,1.08749117,689.08,687.94,0.26700393]
[1737880907699,1.08749117,689.08,687.93,0.29072725]
[1737880909200,1.08749117,688.99,687.97,1.08916561]
[1737880912304,1.08749117,688.99,687.93,0.29072725]
[1737880912305,1.08749117,689.32,687.93,0.29072725]
[1737880912497,0.29014521,689.31,687.93,0.29072725]
[1737880917501,1.5162738,689.3,687.93,0.29072725]
[1737880917805,0.29015363,689.29,687.93,0.29072725]
[1737880920810,1.08749117,689.13,687.93,0.29072725]
[1737880923810,1.08749117,689.12,687.93,0.29072725]
[1737880926816,1.08749117,689.15,687.93,0.29072725]
[1737880933325,1.08749117,689.09,687.93,0.29072725]
[1737880936122,1.08749117,689.09,687.94,0.26700264]
[1737880936921,0.29015363,689.29,687.94,0.26700264]
[1737880936922,1.08749117,689.04,687.94,0.26700264]
[1737880940225,1.08749117,689.03,687.95,1.08916561]
[1737880940521,1.08749117,689.03,687.96,0.26700264]
[1737880941721,1.08749117,689.03,687.95,1.08916561]
[1737880941925,1.08749117,689.03,687.96,0.26700464]
[1737880943622,1.08749117,689.03,687.97,0.26700515]
[1737880943826,1.08749117,689.03,687.96,0.26700515]
[1737880944026,1.08749117,689.03,687.97,0.26700599]
[1737880944222,1.08749117,688.97,687.97,1.08916561]
[1737880950332,1.08749117,688.97,687.98,0.2669978]
[1737880950531,1.08749117,688.97,687.97,1.08916561]
[1737880950732,1.08749117,688.96,687.98,1.35616889]
[1737880950928,1.08749117,688.96,687.98,1.08916561]
[1737880954136,1.08749117,688.95,687.99,1.08916561]
[1737880957735,1.08749117,688.94,687.99,1.08916561]
[1737880960743,1.08749117,689.04,687.93,0.29072725]
[1737880963746,1.08749117,689.07,687.93,0.29072725]
[1737880966844,1.08749117,689.01,687.93,0.29072725]
[1737880967044,1.08749117,689.01,687.95,1.08916561]
[1737880969351,1.08749117,689.0,687.96,1.08916561]
[1737880971848,1.08749117,689.07,687.94,1.08916561]
[1737880975352,1.08749117,689.05,687.94,1.08916561]
[1737880978655,1.08749117,689.09,687.93,0.29072725]
[1737880983156,1.08749117,689.05,687.93,1.37989286]
[1737880986952,0.29015363,689.29,687.93,0.29072725]
[1737881006974,0.29015363,689.29,687.93,1.37989286]
[1737881006975,1.08749117,689.1,687.93,1.37989286]
[1737881011679,1.08749117,689.1,687.94,0.26699792]
[1737881014281,1.08749117,689.06,687.97,1.08916561]
[1737881017777,1.08749117,689.03,687.99,1.08916561]
[1737881021189,1.08749117,689.04,687.98,1.08916561]
[1737881024889,1.08749117,689.09,687.95,1.08916561]
[1737881028896,1.08749117,689.08,687.95,1.08916561]
[1737881031397,1.08749117,689.08,687.96,0.26700096]
[1737881031899,1.08749117,689.07,687.96,1.35616657]
[1737881032101,1.08749117,689.07,687.97,0.26700096]
[1737881032300,1.08749117,689.07,687.98,0.26699831]
[1737881032500,1.08749117,689.07,687.96,1.08916561]
[1737881032501,1.08749117,689.07,687.97,0.26699831]
[1737881032700,1.08749117,689.07,687.98,0.26699831]
[1737881032901,1.08749117,689.07,687.97,0.26699831]
[1737881033103,1.08749117,689.07,687.98,0.26699831]
[1737881033402,1.08749117,689.07,687.99,0.26699831]
[1737881033600,1.08749117,689.07,687.96,1.08916561]
[1737881035209,1.08749117,688.96,688.02,1.08916561]
[1737881038008,1.08749117,689.02,688.01,1.08916561]
[1737881042011,1.08749117,689.03,688.0,1.08916561]
[1737881046215,0.29015363,689.29,687.97,1.08916561]
[1737881046216,1.08749117,689.01,687.97,1.08916561]
[1737881049916,1.08749117,689.11,687.93,0.29072725]
[1737881054324,1.08749117,689.11,687.93,0.28469301]
[1737881054724,1.08749117,689.17,687.93,0.28469301]
[1737881058421,1.3776448,689.29,687.93,0.28469301]
[1737881058422,1.08749117,689.18,687.93,0.28469301]
[1737881064032,1.08749117,689.12,687.93,0.28469301]
[1737881066937,1.08749117,689.12,687.94,1.08916561]
[1737881070944,1.08749117,689.09,687.94,1.08916561]
[1737881071845,1.08749117,689.09,687.95,0.2907188]
[1737881074046,1.08749117,689.07,687.96,1.08916561]
[1737881074247,1.08749117,689.07,687.97,0.29071035]
[1737881078658,0.29015363,689.29,687.97,0.29071035]
[1737881084963,1.08749117,689.26,687.97,0.29071035]
[1737881087765,1.08749117,689.26,687.98,0.2669752]
[1737881087966,1.08749117,689.25,687.98,0.2669752]
[1737881088568,1.08749117,689.25,687.98,0.29070612]
[1737881091370,1.08749117,689.16,687.98,0.29070612]
[1737881094468,1.08749117,689.27,687.98,0.29070612]
[1737881097773,0.29015363,689.29,687.98,0.29070612]
[1737881104980,1.08749117,689.28,687.98,0.29070612]
[1737881106781,0.29016205,689.27,687.98,0.29070612]
[1737881118588,1.08749117,689.21,687.98,0.29070612]
[1737881121786,1.08749117,689.23,687.98,0.29070612]
[1737881128191,0.29016205,689.27,687.98,0.29070612]
[1737881128192,1.08749117,689.24,687.98,0.29070612]
[1737881131696,1.08749117,689.14,687.98,0.29070612]
[1737881135096,1.08749117,689.1,687.98,0.29070612]
[1737881138298,1.08749117,689.25,687.98,0.29070612]
[1737881140804,1.08749117,689.26,687.98,0.29070612]
[1737881144708,0.29016205,689.27,687.98,0.29070612]
[1737881151717,0.29016205,689.27,687.95,0.2907188]
[1737881176236,0.29016205,689.27,687.96,0.26692771]
[1737881177032,0.29016205,689.27,687.97,0.29071035]
[1737881178538,0.29016205,689.27,687.98,0.26692771]
[1737881180635,0.29016205,689.27,687.99,0.29070189]
[1737881180939,0.29016205,689.27,688.0,0.26692771]
[1737881181336,0.29016205,689.27,688.01,0.29069344]
[1737881181534,0.29016205,689.27,688.02,0.26692771]
[1737881182234,0.29016205,689.27,688.03,0.29068499]
[1737881182434,0.29016205,689.27,688.04,0.26692771]
[1737881182634,0.29016205,689.27,688.05,0.55757479]
[1737881182835,0.29016205,689.27,688.06,0.26689825]
[1737881183039,0.29016205,689.27,688.06,0.55757057]
[1737881183242,0.29016205,689.27,688.07,0.26689825]
[1737881183441,0.29016205,689.27,688.08,0.29066387]
[1737881183638,0.29016205,689.27,688.09,0.26689825]
[1737881183839,0.29016205,689.27,688.1,0.29065542]
[1737881187243,0.29016205,689.27,688.11,0.26690403]
[1737881187439,0.29016205,689.27,688.12,0.29064698]
[1737881187646,0.29016205,689.27,688.13,0.26690403]
[1737881187947,0.29016205,689.27,688.14,0.29063853]
[1737881188241,0.29016205,689.27,688.15,0.26690403]
[1737881188444,0.29016205,689.27,688.16,0.26690747]
[1737881193248,0.29016205,689.27,688.17,0.26690439]
[1737881193449,0.29016205,689.27,688.16,0.26690439]
[1737881193648,0.29016205,689.27,688.17,0.26690439]
[1737881193948,0.29016205,689.27,688.18,0.26690439]
[1737881194149,0.29016205,689.27,688.19,0.26690439]
[1737881194350,0.29016205,689.27,688.2,0.26690439]
[1737881194555,0.29016205,689.27,688.21,0.26690439]
[1737881194742,0.29016205,689.27,688.22,0.26690439]
[1737881194949,0.29016205,689.27,688.16,0.26690439]
[1737881195144,0.29016205,689.27,688.15,0.2906343]
[1737881195348,0.29016205,689.27,688.16,0.2669053]
[1737881195747,0.29016205,689.27,688.15,0.2906343]
[1737881225564,0.29016205,689.27,688.16,0.26689857]
[1737881227064,0.29016205,689.27,688.15,0.2906343]
[1737881228567,0.29016205,689.27,688.16,1.08916561]
[1737881231868,1.08749117,689.25,688.15,0.2906343]
[1737881235668,1.08749117,689.24,688.15,0.2906343]
[1737881239575,1.08749117,689.22,688.15,0.2906343]
[1737881242377,0.29016205,689.27,688.15,0.2906343]
[1737881264498,1.08749117,689.21,688.15,0.2906343]
[1737881267604,1.08749117,689.19,688.15,0.2906343]
[1737881270902,1.08749117,689.2,688.15,0.2906343]
[1737881273905,1.08749117,689.16,688.15,0.2906343]
[1737881276410,1.08749117,689.15,688.15,0.2906343]
[1737881280515,1.08749117,689.19,688.15,0.2906343]
[1737881283115,1.08749117,689.2,688.15,0.2906343]
[1737881286422,1.08749117,689.23,688.15,0.2906343]
[1737881289723,1.08749117,689.12,688.15,0.2906343]
[1737881292427,1.08749117,689.15,688.15,0.2906343]
[1737881295634,0.29016205,689.27,688.15,0.2906343]
[1737881302331,1.37765322,689.27,688.15,0.2906343]
[1737881305440,1.08749117,689.15,688.15,0.2906343]
[1737881312141,0.29016205,689.27,688.15,0.2906343]
[1737881339665,0.29016205,689.27,688.16,0.26689933]
[1737881339865,0.29016205,689.27,688.17,0.29062586]
[1737881347564,0.29016205,689.27,688.18,0.2669008]
[1737881347767,0.29016205,689.27,688.18,0.55752243]
[1737881348070,0.29016205,689.27,688.18,0.29062163]
[1737881348666,0.29016205,689.27,688.19,0.26690195]
[1737881352178,0.29016205,689.27,688.18,1.37978724]
[1737881352380,0.29016205,689.27,688.19,0.26689828]
[1737881353678,1.08749117,689.26,688.24,1.08916561]
[1737881354077,1.08749117,689.26,688.25,0.2668956]
[1737881356574,0.29016205,689.27,688.25,0.2668956]
[1737881356575,1.08749117,689.24,688.26,1.08916561]
[1737881357084,1.08749117,689.24,688.27,0.26688806]
[1737881357885,1.08749117,689.24,688.26,1.08916561]
[1737881359486,1.08749117,689.25,688.29,1.08916561]
[1737881361482,1.08749117,689.35,688.25,1.08916561]
[1737881363791,1.08749117,689.36,688.24,1.08916561]
[1737881363985,1.08749117,689.36,688.24,1.37976191]
[1737881367592,2.22029448,689.9,688.24,1.37976191]
[1737881367593,1.08749117,689.79,688.24,0.2905963]
[1737881367893,0.28994751,689.78,688.24,0.2905963]
[1737881371792,1.51528896,689.77,688.24,0.2905963]
[1737881371993,0.28995592,689.76,688.24,0.2905963]
[1737881377790,1.08749117,689.49,688.24,0.2905963]
[1737881380799,1.08749117,689.5,688.24,0.2905963]
[1737881384399,0.28995592,689.76,688.24,0.2905963]
[1737881384400,1.08749117,689.65,688.24,0.2905963]
[1737881387703,1.08749117,689.54,688.24,0.2905963]
[1737881391306,0.28995592,689.76,688.24,0.2905963]
[1737881403915,0.28995592,689.76,688.25,0.26681635]
[1737881404718,0.28995592,689.76,688.26,0.29058785]
[1737881407521,0.28995592,689.76,688.27,0.26682019]
[1737881407920,0.28995592,689.76,688.26,0.29058785]
[1737881408122,0.28995592,689.76,688.27,0.2668221]
[1737881408519,0.28995592,689.76,688.28,0.29057941]
[1737881423232,1.08749117,689.68,688.28,0.29057941]
[1737881423439,1.08749117,689.68,688.29,0.26683232]
[1737881423732,1.08749117,689.68,688.3,0.29057097]
[1737881426537,0.28995592,689.76,688.32,1.08916561]
[1737881426538,1.08749117,689.55,688.32,1.08916561]
[1737881426738,1.08749117,689.55,688.33,0.2905583]
[1737881429341,0.28995592,689.76,688.33,0.2905583]
[1737881429342,1.08749117,689.62,688.33,0.2905583]
[1737881432744,1.08749117,689.59,688.33,0.2905583]
[1737881435645,1.08749117,689.55,688.33,0.2905583]
[1737881438840,1.08749117,689.56,688.33,0.2905583]
[1737881445246,1.08749117,689.38,688.33,0.2905583]
[1737881448848,1.08749117,689.39,688.33,0.2905583]
[1737881456950,1.08749117,689.38,688.33,0.2905583]
[1737881460156,1.08749117,689.49,688.33,0.2905583]
[1737881463357,1.08749117,689.54,688.33,0.2905583]
[1737881466060,1.08749117,689.55,688.33,0.2905583]
[1737881468960,1.08749117,689.51,688.33,0.2905583]
[1737881471959,1.08749117,689.5,688.33,0.2905583]
[1737881474966,1.08749117,689.45,688.33,0.2905583]
[1737881477966,1.08749117,689.37,688.33,0.2905583]
[1737881480566,1.08749117,689.36,688.33,0.2905583]
[1737881484474,1.08749117,689.38,688.33,0.2905583]
[1737881487676,1.08749117,689.33,688.33,0.2905583]
[1737881490776,1.08749117,689.31,688.33,0.2905583]
[1737881493479,1.08749117,689.28,688.33,1.37972391]
[1737881496178,1.08749117,689.28,688.34,1.08916561]
[1737881498879,1.08749117,689.28,688.33,0.2905583]
[1737881498880,1.08749117,689.28,688.33,1.37972391]
[1737881501483,1.08749117,689.41,688.33,0.2905583]
[1737881504986,1.08749117,689.45,688.33,0.2905583]
[1737881507683,1.08749117,689.42,688.33,0.2905583]
[1737881510389,1.08749117,689.45,688.33,0.2905583]
[1737881513792,1.08749117,689.42,688.33,0.2905583]
[1737881515995,4.01449117,689.42,688.33,0.2905583]
[1737881516495,1.08749117,689.32,688.33,0.2905583]
[1737881519297,1.08749117,689.33,688.33,0.2905583]
[1737881525804,2.927,689.42,688.33,0.2905583]
[1737881531208,0.421,689.41,688.33,0.2905583]
[1737881534111,1.523,689.41,688.33,0.2905583]
[1737881539514,1.08749117,689.4,688.33,0.2905583]
[1737881543118,2.17549117,689.4,688.33,0.2905583]
[1737881543714,1.08749117,689.29,688.33,0.2905583]
[1737881546819,1.088,689.4,688.33,0.2905583]
[1737881546820,1.08749117,689.27,688.33,0.2905583]
[1737881550221,1.088,689.4,688.33,0.2905583]
[1737881557221,2.147,689.4,688.33,0.2905583]
[1737881559520,3.285,689.4,688.33,0.2905583]
[1737881562423,0.421,689.39,688.33,0.2905583]
[1737881574128,1.08749117,689.31,688.33,0.2905583]
[1737881578430,1.08749117,689.34,688.33,0.2905583]
[1737881581232,1.08749117,689.31,688.33,0.2905583]
[1737881584230,1.08749117,689.28,688.33,0.2905583]
[1737881586930,0.421,689.39,688.33,0.2905583]
[1737881586931,1.08749117,689.32,688.33,0.2905583]
[1737881590038,1.08749117,689.3,688.33,0.2905583]
[1737881591337,2.06349117,689.3,688.33,0.2905583]
[1737881595840,0.976,689.3,688.33,0.2905583]
[1737881598942,2.06349117,689.3,688.33,0.2905583]
[1737881601545,0.976,689.3,688.33,0.2905583]
[1737881605449,1.08749117,689.25,688.33,0.2905583]
[1737881612548,1.08749117,689.26,688.33,0.2905583]
[1737881615855,1.08749117,689.27,688.33,0.2905583]
[1737881618154,2.22029448,690.03,688.33,0.2905583]
[1737881618155,1.08749117,689.28,688.33,0.2905583]
[1737881621957,1.08749117,689.24,688.33,0.2905583]
[1737881623152,0.421,689.23,688.33,0.2905583]
[1737881624958,1.50849117,689.23,688.33,0.2905583]
[1737881628763,0.421,689.23,688.33,0.2905583]
[1737881630464,1.139,689.23,688.33,0.2905583]
[1737881641178,0.718,689.23,688.33,0.2905583]
[1737881656591,1.585,689.23,688.33,0.2905583]
[1737881703419,1.585,689.23,688.09,1.08916561]
[1737881706431,1.585,689.23,687.8,1.08916561]
[1737881706619,1.585,689.23,687.81,0.29077797]
[1737881713727,1.585,689.23,687.82,0.26697338]
[1737881713929,1.585,689.23,687.83,0.29076952]